bitfinex-derivatives/quotes_BTCF0:USTF0_20240910
["timestamp","ask_amount","ask_price","bid_price","bid_amount"]
[1725990626332,0.23888764,57287.0,57285.0,0.087278]
[1725990627556,0.23888764,57287.0,57285.0,0.088278]
[1725990628458,0.24088764,57287.0,57285.0,0.089278]
[1725990628651,0.15361264,57287.0,57286.0,0.087276]
[1725990629749,0.15261264,57287.0,57286.0,0.088276]
[1725990630150,0.35661264,57287.0,57286.0,0.089276]
[1725990630352,0.44388764,57287.0,57286.0,0.002]
[1725990631062,0.44388764,57287.0,57286.0,0.0024]
[1725990631359,0.44488764,57287.0,57286.0,0.0024]
[1725990631946,0.54120496,57287.0,57286.0,0.0024]
[1725990632351,2.04120496,57287.0,57286.0,0.0024]
[1725990634757,0.54120496,57287.0,57286.0,0.0024]
[1725990636248,0.54120496,57287.0,57286.0,0.089676]
[1725990637450,0.45392996,57287.0,57286.0,0.089676]
[1725990637863,0.12872996,57287.0,57286.0,0.376952]
[1725990638061,0.12872996,57287.0,57286.0,0.289676]
[1725990638062,0.10231732,57287.0,57286.0,0.289676]
[1725990638355,0.27559809,57287.0,57286.0,0.089676]
[1725990638564,0.17928077,57287.0,57286.0,0.089676]
[1725990638963,0.27558757,57287.0,57286.0,0.376952]
[1725990639855,0.27558757,57287.0,57286.0,0.900632]
[1725990640362,0.27558757,57287.0,57286.0,0.376952]
[1725990642459,0.17928077,57287.0,57286.0,0.376952]
[1725990643360,0.17928077,57287.0,57286.0,0.289676]
[1725990643663,0.26655577,57287.0,57286.0,0.089676]
[1725990646459,0.26655577,57287.0,57286.0,0.15832478]
[1725990646759,0.17928077,57287.0,57286.0,0.15832478]
[1725990647159,0.17928077,57287.0,57286.0,0.289676]
[1725990647465,0.17928077,57287.0,57286.0,0.376952]
[1725990647665,0.17928077,57287.0,57286.0,0.900632]
[1725990647858,0.17928077,57287.0,57286.0,0.376952]
[1725990648063,0.17928077,57287.0,57286.0,1.587908]
[1725990648670,0.17928077,57287.0,57286.0,1.586908]
[1725990649062,0.17528077,57287.0,57286.0,1.585908]
[1725990649263,0.17728077,57287.0,57286.0,1.585908]
[1725990649671,0.17728077,57287.0,57286.0,1.0174282]
[1725990650369,0.17728077,57287.0,57286.0,0.985908]
[1725990650666,0.17728077,57287.0,57286.0,0.898632]
[1725990650969,0.17728077,57287.0,57286.0,0.698632]
[1725990651666,0.27358954,57287.0,57286.0,0.698632]
[1725990651872,0.27358954,57287.0,57286.0,0.174952]
[1725990652069,0.27358954,57287.0,57286.0,0.698632]
[1725990652457,0.43016335,57287.0,57286.0,0.698632]
[1725990652972,0.27358954,57287.0,57286.0,0.174952]
[1725990653569,0.27358954,57287.0,57286.0,0.087676]
[1725990653570,0.43062107,57287.0,57286.0,0.087676]
[1725990653771,0.27358954,57287.0,57286.0,0.087676]
[1725990654068,0.10030877,57287.0,57286.0,0.087676]
[1725990655063,0.1739709,57289.0,57288.0,0.087273]
[1725990655365,0.1739709,57289.0,57288.0,0.37653236]
[1725990655564,0.1739709,57289.0,57288.0,0.55893293]
[1725990655767,0.1739709,57289.0,57288.0,0.67932561]
[1725990655963,0.1739709,57289.0,57288.0,0.55893293]
[1725990656272,0.1759709,57289.0,57288.0,0.55893293]
[1725990656574,0.1779709,57289.0,57288.0,0.49691263]
[1725990656964,0.1779709,57289.0,57288.0,0.49646749]
[1725990657266,0.1779709,57289.0,57288.0,0.37608722]
[1725990659171,0.2652429,57289.0,57288.0,0.37608722]
[1725990659381,0.2652429,57289.0,57288.0,0.21925113]
[1725990659877,0.1779709,57289.0,57288.0,0.21925113]
[1725990660081,0.1779709,57289.0,57288.0,0.37621554]
[1725990660863,0.1779709,57289.0,57288.0,0.24456707]
[1725990661080,0.2652429,57289.0,57288.0,0.37619384]
[1725990661268,0.3525149,57289.0,57288.0,0.28892084]
[1725990661468,0.2652429,57289.0,57288.0,0.28892084]
[1725990662063,0.2652429,57289.0,57288.0,0.10320442]
[1725990662369,0.087273,57288.0,57287.0,0.10320442]
[1725990662569,0.087275,57287.0,57286.0,0.10320442]
[1725990662775,0.287675,57287.0,57286.0,0.10320442]
[1725990662978,0.287675,57287.0,57281.0,0.087284]
[1725990662979,0.087276,57286.0,57285.0,0.10320442]
[1725990663272,0.087278,57285.0,57284.0,0.10320442]
[1725990663464,0.322778,57285.0,57284.0,0.10320442]
[1725990663670,0.322378,57285.0,57284.0,0.10320442]
[1725990664276,0.08728,57284.0,57283.0,0.10320442]
[1725990665076,0.08768,57284.0,57283.0,0.10320442]
[1725990665468,0.08768,57284.0,57282.0,0.19048642]
[1725990665672,0.0004,57283.0,57282.0,0.19048642]
[1725990666283,0.0004,57283.0,57282.0,0.087282]
[1725990666578,0.0004,57283.0,57282.0,0.19047988]
[1725990667282,0.0004,57283.0,57282.0,0.19347988]
[1725990667574,0.0004,57283.0,57282.0,0.092282]
[1725990667774,0.2004,57283.0,57282.0,0.092282]
[1725990669781,0.23243506,57283.0,57282.0,0.092282]
[1725990671075,0.31971606,57283.0,57282.0,0.005]
[1725990671381,1.53071706,57283.0,57282.0,0.005]
[1725990671881,0.2,57273.0,57272.0,0.087298]
[1725990672280,0.2004,57273.0,57272.0,0.087298]
[1725990672875,0.287696,57273.0,57272.0,0.087298]
[1725990673278,0.2004,57273.0,57272.0,0.087298]
[1725990673480,0.0004,57273.0,57272.0,0.097298]
[1725990674885,0.0004,57273.0,57272.0,0.105298]
[1725990676196,0.03118686,57273.0,57272.0,0.105298]
[1725990678077,0.08729,57277.0,57276.0,0.087292]
[1725990678282,0.2,57279.0,57278.0,0.087289]
[1725990678476,0.287287,57279.0,57278.0,0.087689]
[1725990678691,0.287287,57279.0,57278.0,0.087289]
[1725990679083,0.2,57279.0,57278.0,0.087289]
[1725990679486,0.087285,57281.0,57280.0,0.087283]
[1725990679691,0.087285,57281.0,57280.0,0.087683]
[1725990679889,0.08816,57284.0,57280.0,0.0004]
[1725990680098,0.087276,57287.0,57286.0,0.087276]
[1725990680285,0.087276,57287.0,57286.0,0.13921294]
[1725990680480,0.087276,57287.0,57286.0,0.13881294]
[1725990680690,0.087276,57287.0,57286.0,0.087276]
[1725990681485,0.087276,57287.0,57286.0,0.15598962]
[1725990681794,0.089276,57287.0,57286.0,0.088276]
[1725990681992,0.089276,57287.0,57286.0,0.15698962]
[1725990682489,0.089276,57287.0,57286.0,0.089276]
[1725990682490,0.094276,57287.0,57286.0,0.089276]
[1725990682790,0.094276,57287.0,57286.0,0.15798962]
[1725990682987,0.294276,57287.0,57286.0,0.089276]
[1725990683183,0.291276,57287.0,57286.0,0.001]
[1725990683385,0.378553,57287.0,57286.0,0.05154699]
[1725990684486,0.174552,57286.0,57285.0,0.05154699]
[1725990684795,0.08728,57284.0,57283.0,0.06911362]
[1725990685096,0.08728,57284.0,57283.0,0.0004]
[1725990685097,0.08768,57284.0,57283.0,0.0004]
[1725990685287,0.08728,57284.0,57283.0,0.087681]
[1725990685482,0.0004,57286.0,57285.0,0.087278]
[1725990685691,0.0004,57286.0,57285.0,0.087678]
[1725990685992,0.287264,57294.0,57285.0,0.087678]
[1725990685993,0.03111585,57292.0,57291.0,0.087269]
[1725990686291,0.0032,57296.0,57295.0,0.087263]
[1725990686500,0.0032,57296.0,57295.0,0.087663]
[1725990686887,0.03485656,57296.0,57295.0,0.087663]
[1725990687085,0.0032,57296.0,57295.0,0.087663]
[1725990687498,0.0052,57296.0,57295.0,0.088663]
[1725990688797,0.0082,57296.0,57295.0,0.089663]
[1725990691797,0.095461,57296.0,57295.0,0.0024]
[1725990692095,0.619061,57296.0,57295.0,0.0024]
[1725990692294,0.095461,57296.0,57295.0,0.0024]
[1725990693501,0.0082,57296.0,57295.0,0.0024]
[1725990693802,0.0082,57296.0,57295.0,0.089663]
[1725990696295,0.095461,57296.0,57295.0,0.0024]
[1725990699909,0.095461,57296.0,57295.0,0.089663]
[1725990700205,0.13819878,57296.0,57295.0,0.089663]
[1725990700500,0.19176769,57296.0,57295.0,0.089663]
[1725990701703,0.34879718,57296.0,57295.0,0.089663]
[1725990704204,0.19176769,57296.0,57295.0,0.089663]
[1725990704509,0.26115408,57296.0,57295.0,0.089663]
[1725990706309,0.10450669,57296.0,57295.0,0.089663]
[1725990708118,0.11921704,57301.0,57300.0,0.087255]
[1725990708316,0.087254,57301.0,57300.0,0.088055]
[1725990709020,0.087254,57301.0,57300.0,0.0008]
[1725990709413,0.087254,57301.0,57300.0,0.0018]
[1725990710122,0.090254,57301.0,57300.0,0.0028]
[1725990710824,0.090254,57301.0,57300.0,0.090055]
[1725990713214,0.090254,57301.0,57300.0,0.14159196]
[1725990713414,0.090254,57301.0,57300.0,0.090055]
[1725990714118,0.090254,57301.0,57300.0,0.14159196]
[1725990714318,0.090254,57301.0,57300.0,0.090055]
[1725990714913,0.003,57301.0,57300.0,0.090055]
[1725990717123,0.003,57301.0,57300.0,0.17731]
[1725990717325,0.003,57301.0,57300.0,0.090055]
[1725990717525,0.003,57301.0,57300.0,0.15877095]
[1725990718225,0.203,57301.0,57300.0,0.090055]
[1725990718622,0.003,57301.0,57300.0,0.090055]
[1725990720324,0.003,57301.0,57300.0,0.24602595]
[1725990720529,0.003,57301.0,57300.0,0.17731]
[1725990720928,0.003,57301.0,57300.0,0.26323378]
[1725990721323,0.003,57301.0,57300.0,0.17731]
[1725990721521,0.003,57301.0,57300.0,0.17631]
[1725990721718,0.087243,57308.0,57307.0,0.087245]
[1725990721927,0.087243,57308.0,57307.0,0.05233588]
[1725990722231,0.087243,57308.0,57307.0,0.0008]
[1725990722932,0.087243,57308.0,57307.0,0.0018]
[1725990723130,0.1835244,57308.0,57307.0,0.0018]
[1725990723522,0.82513075,57308.0,57307.0,0.0018]
[1725990723726,0.82513075,57308.0,57301.0,0.087252]
[1725990723727,0.2,57302.0,57301.0,0.087252]
[1725990723929,0.23430771,57302.0,57301.0,0.087252]
[1725990724128,0.23430771,57302.0,57301.0,0.287252]
[1725990724330,0.28786255,57302.0,57301.0,0.374506]
[1725990724533,0.0962814,57302.0,57301.0,0.374506]
[1725990725131,0.0962814,57302.0,57301.0,0.375506]
[1725990725731,0.0962814,57302.0,57301.0,0.376506]
[1725990725938,0.0962814,57302.0,57301.0,0.40743964]
[1725990726326,0.04272656,57302.0,57301.0,0.40743964]
[1725990726848,0.0962814,57302.0,57301.0,0.40743964]
[1725990727027,0.04272656,57302.0,57301.0,0.40743964]
[1725990729036,0.0962814,57302.0,57301.0,0.40743964]
[1725990729236,0.04272656,57302.0,57301.0,0.40743964]
[1725990729847,0.04272656,57302.0,57301.0,1.61825364]
[1725990730141,0.0008,57308.0,57302.0,0.52356]
[1725990730338,0.03090579,57311.0,57310.0,0.17448]
[1725990730547,0.3261,57322.0,57321.0,0.087223]
[1725990730735,0.087222,57322.0,57321.0,0.0008]
[1725990730939,0.087222,57322.0,57321.0,0.088023]
[1725990731347,0.087222,57322.0,57321.0,0.087223]
[1725990731844,0.324314,57327.0,57320.0,0.05139389]
[1725990732044,0.324314,57327.0,57326.0,0.0008]
[1725990732549,0.934849,57327.0,57326.0,0.0008]
[1725990732944,0.087222,57322.0,57321.0,0.002]
[1725990733135,0.287222,57322.0,57321.0,0.002]
[1725990733948,0.287222,57322.0,57321.0,0.001]
[1725990734339,0.087223,57321.0,57320.0,0.001]
[1725990734750,0.087223,57321.0,57319.0,0.087225]
[1725990734944,0.087226,57320.0,57315.0,0.13862489]
[1725990735145,0.2,57318.0,57315.0,0.05139389]
[1725990736244,0.2,57318.0,57315.0,0.05239389]
[1725990736949,0.2,57318.0,57317.0,0.087229]
[1725990737848,0.201,57318.0,57317.0,0.087229]
[1725990738147,0.29726149,57318.0,57317.0,0.087229]
[1725990738448,0.29726149,57318.0,57317.0,0.089229]
[1725990738948,0.38448949,57318.0,57317.0,0.002]
[1725990739450,0.47171749,57318.0,57317.0,0.002]
[1725990739654,0.08724,57310.0,57309.0,0.087241]
[1725990739852,0.19108949,57311.0,57310.0,0.08724]
[1725990740040,0.28735919,57311.0,57310.0,0.08804]
[1725990740248,0.0962697,57311.0,57310.0,0.08804]
[1725990740645,0.19112167,57311.0,57310.0,0.08804]
[1725990741145,0.0962697,57311.0,57310.0,0.08804]
[1725990741453,0.60667618,57311.0,57310.0,0.0008]
[1725990741651,0.41655451,57311.0,57310.0,0.0018]
[1725990741952,0.41655451,57311.0,57310.0,0.0028]
[1725990743656,0.21655451,57311.0,57310.0,0.0028]
[1725990745155,0.12028481,57311.0,57310.0,0.05419389]
[1725990745455,0.12028481,57311.0,57310.0,0.0028]
[1725990746849,0.12028481,57311.0,57310.0,0.05425021]
[1725990747348,0.12028481,57311.0,57310.0,0.0028]
[1725990748254,0.12028481,57311.0,57310.0,0.05425564]
[1725990748652,0.12028481,57311.0,57310.0,0.0028]
[1725990748846,0.12028481,57311.0,57310.0,0.05426312]
[1725990750548,0.12028481,57311.0,57310.0,0.14150312]
[1725990750749,0.03304681,57311.0,57310.0,0.09004]
[1725990751760,0.12028481,57311.0,57310.0,0.09004]
[1725990753156,0.07663672,57311.0,57310.0,0.09004]
[1725990754359,0.1082895,57311.0,57310.0,0.09004]
[1725990754562,0.1082895,57311.0,57310.0,0.0028]
[1725990755571,0.03165278,57311.0,57310.0,0.09004]
[1725990755753,0.087237,57312.0,57310.0,0.09004]
[1725990756153,0.087237,57312.0,57311.0,0.0004]
[1725990756961,0.087237,57312.0,57311.0,0.087638]
[1725990758059,0.087237,57312.0,57311.0,0.089638]
[1725990758964,0.11828454,57312.0,57311.0,0.0024]
[1725990759163,0.31828454,57312.0,57311.0,0.0024]
[1725990759468,0.40552254,57312.0,57311.0,0.0024]
[1725990760272,0.50180421,57312.0,57311.0,0.0024]
[1725990761068,0.61760421,57312.0,57311.0,0.0024]
[1725990761264,0.6801828,57312.0,57311.0,0.0024]
[1725990762556,0.1899078,57312.0,57311.0,0.0024]
[1725990762758,0.12732921,57312.0,57311.0,0.089638]
[1725990762953,0.21456621,57312.0,57311.0,0.089638]
[1725990763664,0.12732921,57312.0,57311.0,0.089638]
[1725990763860,0.12732339,57312.0,57311.0,0.089638]
[1725990764169,0.1273234,57312.0,57311.0,0.089638]
[1725990765766,0.2145604,57312.0,57311.0,0.089638]
[1725990766570,0.16100864,57312.0,57311.0,0.089638]
[1725990766963,0.11828454,57312.0,57311.0,0.089638]
[1725990767469,0.31828454,57312.0,57311.0,0.089638]
[1725990767668,0.23104754,57312.0,57311.0,0.089638]
[1725990768064,0.31828454,57312.0,57311.0,0.089638]
[1725990772265,0.31828454,57312.0,57311.0,0.0024]
[1725990773671,0.03104754,57312.0,57311.0,0.089638]
[1725990773974,0.087237,57312.0,57311.0,0.089638]
[1725990774271,0.087235,57314.0,57313.0,0.087235]
[1725990774467,0.08723,57317.0,57313.0,0.0004]
[1725990774674,0.22257799,57319.0,57318.0,0.087228]
[1725990775568,0.11812464,57319.0,57318.0,0.087228]
[1725990775970,0.23089864,57319.0,57314.0,0.087233]
[1725990776274,0.08723,57317.0,57315.0,0.087231]
[1725990776674,0.08723,57317.0,57316.0,0.087231]
[1725990776873,0.18350231,57317.0,57316.0,0.087231]
[1725990778273,0.18350231,57317.0,57316.0,0.088231]
[1725990778876,0.09627231,57317.0,57316.0,0.088231]
[1725990779265,0.09627231,57317.0,57316.0,0.089231]
[1725990779475,0.09727231,57317.0,57316.0,0.089231]
[1725990781181,0.18450131,57317.0,57316.0,0.002]
[1725990781581,0.09727231,57317.0,57316.0,0.089231]
[1725990781774,0.18450131,57317.0,57316.0,0.089231]
[1725990782271,0.18450131,57317.0,57316.0,0.002]
[1725990782576,0.088229,57317.0,57316.0,0.002]
[1725990784078,0.088229,57317.0,57316.0,0.089231]
[1725990784079,0.001,57317.0,57316.0,0.089231]
[1725990785776,0.001,57317.0,57316.0,0.289231]
[1725990785984,0.001,57317.0,57316.0,0.089231]
[1725990786171,0.088229,57317.0,57316.0,0.089231]
[1725990787077,0.001,57317.0,57316.0,0.089231]
[1725990790675,0.15982952,57317.0,57316.0,0.089231]
[1725990791776,0.53428752,57317.0,57316.0,0.002]
[1725990792083,0.087234,57314.0,57313.0,0.087633]
[1725990792279,0.001,57317.0,57316.0,0.087231]
[1725990792499,0.04371997,57317.0,57316.0,0.087631]
[1725990792881,0.13094897,57317.0,57316.0,0.087631]
[1725990793077,0.18449556,57317.0,57316.0,0.087631]
[1725990794382,0.18449556,57317.0,57316.0,0.0014]
[1725990794683,0.18450055,57317.0,57316.0,0.0014]
[1725990797689,0.088229,57317.0,57316.0,0.0014]
[1725990802893,0.001,57317.0,57316.0,0.088631]
[1725990803284,0.001,57317.0,57316.0,0.1402127]
[1725990805281,0.088229,57317.0,57316.0,0.1402127]
[1725990805696,0.088229,57317.0,57316.0,0.088631]
[1725990807280,0.088229,57317.0,57316.0,0.0014]
[1725990808793,0.088229,57317.0,57316.0,0.088631]
[1725990810995,0.088229,57317.0,57316.0,0.0014]
[1725990812001,0.088229,57317.0,57316.0,0.088631]
[1725990812298,0.001,57317.0,57316.0,0.088631]
[1725990812800,0.09727144,57317.0,57316.0,0.088631]
[1725990813893,0.29727144,57317.0,57293.0,0.087265]
[1725990814096,0.08726,57297.0,57289.0,0.00096]
[1725990814294,0.2,57294.0,57293.0,0.087266]
[1725990814494,0.2,57294.0,57287.0,0.087275]
[1725990814691,0.2,57286.0,57283.0,0.2267]
[1725990815011,0.09630022,57285.0,57284.0,0.08728]
[1725990815404,0.04273491,57285.0,57284.0,0.08728]
[1725990815591,0.23429706,57285.0,57284.0,0.08728]
[1725990815894,0.23429706,57285.0,57284.0,1.29828]
[1725990816101,0.09630022,57285.0,57284.0,1.29828]
[1725990816488,0.21678799,57285.0,57284.0,1.29828]
[1725990816688,0.21678799,57285.0,57284.0,1.31228]
[1725990816896,0.21678799,57285.0,57284.0,0.71228]
[1725990817102,0.09630022,57285.0,57284.0,0.71228]
[1725990817297,0.09630022,57285.0,57284.0,0.625]
[1725990817490,0.21672155,57285.0,57284.0,0.625]
[1725990817691,0.09630022,57285.0,57284.0,0.639]
[1725990817989,0.05356903,57285.0,57284.0,0.55172]
[1725990818195,0.17438456,57288.0,57284.0,0.55172]
[1725990818390,0.09630704,57287.0,57284.0,0.028]
[1725990818800,0.09630704,57287.0,57284.0,0.55168]
[1725990819298,0.09630704,57287.0,57284.0,0.55068]
[1725990819503,0.15649572,57285.0,57284.0,0.63796]
[1725990819701,0.0014,57288.0,57284.0,0.55068]
[1725990819894,0.21812233,57288.0,57287.0,0.087275]
[1725990820293,0.27169122,57288.0,57287.0,0.087275]
[1725990820606,0.09770666,57288.0,57287.0,0.087275]
[1725990820805,0.17398456,57289.0,57288.0,0.087273]
[1725990821302,0.17398456,57289.0,57288.0,0.087673]
[1725990822601,0.17498456,57289.0,57288.0,0.088673]
[1725990823196,0.17498456,57289.0,57288.0,0.099673]
[1725990824595,0.37498456,57289.0,57288.0,0.16818223]
[1725990824795,0.46225656,57289.0,57288.0,0.099673]
[1725990826112,0.54952856,57289.0,57288.0,0.0124]
[1725990827107,0.46225656,57289.0,57288.0,0.0124]
[1725990827409,1.58593656,57289.0,57288.0,0.0124]
[1725990827713,0.46225656,57289.0,57288.0,0.0124]
[1725990828124,0.288272,57289.0,57288.0,0.0124]
[1725990830906,0.087284,57281.0,57271.0,0.2274]
[1725990831105,0.0004,57272.0,57271.0,0.314699]
[1725990831516,0.0004,57272.0,57271.0,1.66452192]
[1725990832013,0.0004,57272.0,57271.0,1.7100977]
[1725990832200,0.001,57281.0,57280.0,0.087286]
[1725990832711,0.001,57281.0,57280.0,0.087686]
[1725990834009,0.001,57281.0,57280.0,0.101686]
[1725990834808,0.03223261,57281.0,57280.0,0.101686]
[1725990835012,0.002,57281.0,57280.0,0.114686]
[1725990835214,0.089284,57281.0,57280.0,0.114686]
[1725990839117,0.002,57281.0,57280.0,0.114686]
[1725990839810,0.089284,57281.0,57280.0,0.114686]
[1725990841227,0.002,57281.0,57280.0,0.18319523]
[1725990841420,0.002,57281.0,57280.0,0.114686]
[1725990842418,0.002,57281.0,57280.0,0.24504952]
[1725990843015,0.002,57281.0,57280.0,0.33233552]
[1725990843326,0.002,57281.0,57280.0,0.114686]
[1725990843512,0.002,57281.0,57280.0,0.33123222]
[1725990844016,0.002,57281.0,57280.0,0.24524633]
[1725990844227,0.002,57281.0,57280.0,0.114686]
[1725990844525,0.002,57281.0,57280.0,0.20066287]
[1725990845031,0.002,57281.0,57280.0,0.33129564]
[1725990845224,0.089284,57281.0,57280.0,0.33129564]
[1725990845418,0.089284,57281.0,57280.0,0.114686]
[1725990845821,0.002,57281.0,57280.0,0.114686]
[1725990846223,0.122,57281.0,57280.0,0.114686]
[1725990846717,0.209284,57281.0,57280.0,0.114686]
[1725990847117,0.209284,57281.0,57280.0,0.20066287]
[1725990847318,0.209284,57281.0,57280.0,0.114686]
[1725990847629,0.209284,57281.0,57280.0,0.0274]
[1725990847630,0.089284,57281.0,57280.0,0.0274]
[1725990847826,0.209284,57281.0,57280.0,0.0274]
[1725990848122,0.209284,57281.0,57280.0,0.09623228]
[1725990848123,0.289284,57281.0,57280.0,0.09623228]
[1725990848532,0.376568,57281.0,57280.0,0.0274]
[1725990848722,0.376568,57281.0,57280.0,0.07903543]
[1725990849116,0.376568,57281.0,57280.0,0.0274]
[1725990850029,0.289284,57281.0,57280.0,0.0274]
[1725990850425,0.289284,57281.0,57280.0,0.07903543]
[1725990850623,0.289284,57281.0,57280.0,0.0274]
[1725990851724,0.376568,57281.0,57280.0,0.0274]
[1725990852927,0.289284,57281.0,57280.0,0.0274]
[1725990861730,0.202,57281.0,57280.0,0.114686]
[1725990861935,0.202,57281.0,57280.0,0.16635996]
[1725990862229,0.202,57281.0,57280.0,0.114686]
[1725990865224,0.202,57281.0,57280.0,0.18353365]
[1725990865829,0.38561654,57281.0,57280.0,0.114686]
[1725990868425,0.38561654,57281.0,57280.0,0.0274]
[1725990870923,0.38561654,57281.0,57273.0,0.087296]
[1725990870924,0.087286,57280.0,57273.0,0.087296]
[1725990871236,0.287695,57274.0,57273.0,0.087296]
[1725990871534,0.38402754,57274.0,57273.0,0.087296]
[1725990872236,0.30402754,57274.0,57273.0,0.101296]
[1725990872535,0.30402754,57274.0,57273.0,0.103296]
[1725990872731,0.30502754,57274.0,57273.0,0.103296]
[1725990872934,0.208695,57274.0,57273.0,0.103296]
[1725990873135,0.208695,57274.0,57273.0,0.101296]
[1725990873336,0.209695,57274.0,57273.0,0.103296]
[1725990873927,0.24154842,57274.0,57273.0,0.103296]
[1725990874127,0.32154842,57274.0,57273.0,0.103296]
[1725990874531,0.32154842,57274.0,57273.0,0.016]
[1725990875236,1.53264342,57274.0,57273.0,0.016]
[1725990876940,1.33264342,57274.0,57273.0,0.016]
[1725990877139,0.40884342,57274.0,57273.0,0.016]
[1725990878631,1.53264342,57274.0,57273.0,0.016]
[1725990881046,1.57540378,57274.0,57273.0,0.016]
[1725990881738,1.62900099,57274.0,57273.0,0.016]
[1725990882039,0.087303,57269.0,57261.0,0.087314]
[1725990882242,0.2,57265.0,57261.0,0.087314]
[1725990882439,0.2,57265.0,57260.0,0.1086]
[1725990882440,0.0004,57262.0,57260.0,0.1086]
[1725990882636,0.2004,57261.0,57260.0,0.1086]
[1725990882840,0.2004,57261.0,57260.0,0.195916]
[1725990884139,0.2004,57261.0,57260.0,0.1086]
[1725990884140,0.287715,57261.0,57260.0,0.1086]
[1725990884545,0.288715,57261.0,57260.0,0.1086]
[1725990886442,0.289715,57261.0,57260.0,0.1086]
[1725990886948,0.23338235,57261.0,57252.0,0.087328]
[1725990887145,0.287722,57256.0,57252.0,0.087328]
[1725990887345,0.287722,57256.0,57251.0,0.1047]
[1725990887539,0.287328,57252.0,57251.0,0.1047]
[1725990887743,0.287728,57252.0,57251.0,0.1047]
[1725990888046,0.287728,57252.0,57251.0,0.19203]
[1725990888047,0.18286677,57252.0,57251.0,0.19203]
[1725990888252,0.08733,57251.0,57250.0,0.08597687]
[1725990888445,0.08733,57251.0,57249.0,0.0048]
[1725990888446,0.08773,57251.0,57249.0,0.0048]
[1725990888855,0.0004,57250.0,57249.0,0.0048]
[1725990889047,0.08773,57251.0,57249.0,0.0048]
[1725990889351,0.08773,57251.0,57250.0,0.0004]
[1725990889542,0.08773,57251.0,57250.0,0.06925939]
[1725990889749,0.08773,57251.0,57250.0,0.15659039]
[1725990889942,0.0004,57251.0,57250.0,0.15659039]
[1725990890539,0.0004,57251.0,57250.0,0.087731]
[1725990890746,0.0014,57251.0,57250.0,0.087731]
[1725990891342,0.0024,57251.0,57250.0,0.087731]
[1725990891752,0.08873,57251.0,57250.0,0.15656156]
[1725990891957,0.1216671,57251.0,57250.0,0.15656156]
[1725990892654,0.1216671,57251.0,57250.0,0.087731]
[1725990893356,0.1216671,57251.0,57250.0,0.15656156]
[1725990893555,0.1216671,57251.0,57250.0,0.087731]
[1725990894052,0.1216671,57251.0,57250.0,0.15656156]
[1725990895455,0.3216671,57251.0,57250.0,0.15656156]
[1725990896151,0.2416671,57251.0,57250.0,0.15656156]
[1725990897859,0.2406671,57251.0,57250.0,0.0004]
[1725990898058,0.2416671,57251.0,57250.0,0.0004]
[1725990898456,0.2416671,57251.0,57250.0,0.06923056]
[1725990898758,0.2416671,57251.0,57250.0,0.15656156]
[1725990900564,0.2416671,57251.0,57250.0,0.087731]
[1725990900861,0.2416671,57251.0,57250.0,0.15667944]
[1725990901958,0.2416671,57251.0,57250.0,0.087731]
[1725990902261,0.2416671,57251.0,57250.0,0.15669942]
[1725990902653,0.2416671,57251.0,57250.0,0.156711]
[1725990902852,0.2416671,57251.0,57250.0,0.087731]
[1725990905254,0.0024,57251.0,57250.0,0.295062]
[1725990905454,0.3261,57265.0,57250.0,1.2444]
[1725990905757,0.413409,57265.0,57264.0,0.08771]
[1725990905961,0.533409,57265.0,57264.0,0.0004]
[1725990906664,0.56512165,57265.0,57264.0,0.08771]
[1725990906865,0.56612165,57265.0,57264.0,0.0004]
[1725990907662,0.56512165,57265.0,57264.0,0.0004]
[1725990907864,0.56712165,57265.0,57264.0,0.0004]
[1725990908362,0.56612165,57265.0,57264.0,0.0004]
[1725990908665,0.56712165,57265.0,57264.0,0.0004]
[1725990909165,0.24102165,57265.0,57264.0,0.0004]
[1725990911065,0.24102165,57265.0,57264.0,0.06937811]
[1725990911759,0.24102165,57265.0,57264.0,0.0004]
[1725990911956,0.24102165,57265.0,57264.0,0.05223493]
[1725990912275,0.24102165,57265.0,57264.0,0.08771]
[1725990912579,0.03371265,57265.0,57264.0,0.08771]
[1725990913973,0.03371265,57265.0,57264.0,0.39167966]
[1725990914270,0.087296,57273.0,57272.0,0.087297]
[1725990914573,0.087295,57275.0,57274.0,0.087295]
[1725990914871,0.087295,57275.0,57274.0,0.087695]
[1725990916362,0.087295,57275.0,57274.0,0.13946197]
[1725990917276,0.288295,57275.0,57274.0,0.05216697]
[1725990917461,0.087301,57270.0,57269.0,0.06905531]
[1725990917774,0.087301,57270.0,57251.0,0.08733]
[1725990917775,0.087309,57265.0,57263.0,0.0517565]
[1725990917963,0.087313,57262.0,57261.0,0.0517565]
[1725990918163,0.087321,57257.0,57254.0,0.00096]
[1725990918371,0.087321,57257.0,57253.0,0.087325]
[1725990918372,0.39190461,57255.0,57253.0,0.087325]
[1725990918567,0.09636282,57254.0,57253.0,0.087325]
[1725990919964,0.09636282,57254.0,57253.0,1.211325]
[1725990920475,0.19250461,57254.0,57253.0,0.087325]
[1725990920677,0.28886743,57254.0,57253.0,0.087325]
[1725990921678,0.28986743,57254.0,57253.0,0.087325]
[1725990922375,0.09836282,57254.0,57253.0,0.087325]
[1725990923071,0.12922921,57254.0,57253.0,0.087325]
[1725990923474,0.12922921,57254.0,57253.0,0.611325]
[1725990923775,0.09836282,57254.0,57253.0,1.298652]
[1725990924664,0.09836282,57254.0,57253.0,1.498652]
[1725990925279,0.19150461,57256.0,57254.0,0.524]
[1725990925575,0.19150461,57256.0,57255.0,0.087324]
[1725990925771,0.47882661,57256.0,57255.0,0.087324]
[1725990925986,0.47882661,57256.0,57255.0,0.087724]
[1725990926471,0.56614861,57256.0,57255.0,0.0004]
[1725990926774,0.47882661,57256.0,57255.0,0.05223338]
[1725990926977,0.47982661,57256.0,57255.0,0.05223338]
[1725990927363,0.48082661,57256.0,57255.0,0.05223338]
[1725990928977,0.56814861,57256.0,57255.0,0.0004]
[1725990929283,0.56814861,57256.0,57255.0,0.05223338]